fUSD/lending_fUSD_20251210
["ID","MTS","AMOUNT","RATE_DAILY","PERIOD"]
[398121263,1765385451478,-151.0,0.0004,120]
[398121264,1765385451488,-151.0,0.0004,10]
[398121265,1765385451497,-151.0,0.0004,120]
[398121266,1765385451507,-152.549737,0.0004,120]
[398121267,1765385451516,-152.841406,0.0004,120]
[398121268,1765385451527,-151.0,0.0004,120]
[398121269,1765385451537,-152.270595,0.0004,120]
[398121270,1765385451546,-172.011868,0.0004,120]
[398121271,1765385451556,-151.0,0.0004,120]
[398121272,1765385451565,-151.0,0.0004,120]
[398121273,1765385451574,-151.0,0.0004,120]
[398121274,1765385451584,-231.842532,0.0004,120]
[398121275,1765385451595,-151.0,0.0004,120]
[398121276,1765385451605,-151.0,0.0004,120]
[398121277,1765385451615,-152.220373,0.0004,120]
[398121278,1765385451625,-151.0,0.0004,120]
[398121279,1765385451636,-151.0,0.0004,120]
[398121280,1765385451645,-151.0,0.0004,120]
[398121281,1765385451657,-151.0,0.0004,120]
[398121282,1765385451670,-151.0,0.0004,120]
[398121283,1765385451679,-151.0,0.0004,120]
[398121284,1765385451688,-151.0,0.0004,120]
[398121285,1765385451698,-151.0,0.0004,120]
[398121286,1765385451707,-151.0,0.0004,120]
[398121287,1765385451717,-151.0,0.0004,120]
[398121288,1765385451735,-195.437211,0.0004,120]
[398121289,1765385451746,-151.0,0.0004,90]
[398121290,1765385451756,-151.0,0.0004,120]
[398121291,1765385451767,-151.0,0.0004,120]
[398121292,1765385451776,-243.348341,0.0004,120]
[398121293,1765385451786,-151.0,0.0004,120]
[398121294,1765385451795,-153.575721,0.0004,120]
[398121295,1765385451804,-151.0,0.0004,30]
[398121296,1765385451814,-151.0,0.0004,120]
[398121297,1765385451824,-151.0,0.0004,120]
[398121298,1765385451833,-151.0,0.0004,120]
[398121299,1765385451843,-151.0,0.0004,120]
[398121300,1765385451852,-188.123209,0.0004,120]
[398121301,1765385451862,-151.0,0.0004,120]
[398121302,1765385451872,-151.0,0.0004,120]
[398121303,1765385451881,-151.0,0.0004,120]
[398121304,1765385451892,-2500.0,0.0004,120]
[398121305,1765385451901,-151.0,0.0004,120]
[398121306,1765385451911,-1105.311857,0.0004,120]
[398121307,1765385451921,-1105.311857,0.0004,120]
[398121308,1765385451931,-1105.311857,0.0004,120]
[398121309,1765385451941,-151.0,0.0004,120]
[398121310,1765385451950,-151.0,0.0004,120]
[398121311,1765385451959,-1105.311857,0.0004,120]
[398121312,1765385451969,-151.0,0.0004,60]
[398121313,1765385451979,-151.0,0.0004,120]
[398121314,1765385451988,-151.0,0.0004,120]
[398121315,1765385451998,-1119.41108,0.0004,120]
[398121316,1765385452008,-218.378182,0.0004,120]
[398121317,1765385452018,-1119.41108,0.0004,120]
[398121318,1765385452027,-151.0,0.0004,120]
[398121319,1765385452036,-151.0,0.0004,120]
[398121320,1765385452046,-151.0,0.0004,120]
[398121321,1765385452055,-1119.41108,0.0004,120]
[398121322,1765385452064,-151.0,0.0004,120]
[398121323,1765385452074,-151.0,0.0004,120]
[398121324,1765385452087,-1119.41108,0.0004,120]
[398121325,1765385452097,-151.0,0.0004,120]
[398121326,1765385452108,-151.0,0.0004,120]
[398121327,1765385452117,-151.0,0.0004,120]
[398121328,1765385452127,-151.0,0.0004,120]
[398121329,1765385452137,-151.0,0.0004,120]
[398121330,1765385452147,-151.0,0.0004,120]
[398121331,1765385452157,-152.588123,0.0004,120]
[398121332,1765385452168,-169.90399,0.0004,120]
[398121333,1765385452178,-151.0,0.0004,120]
[398121334,1765385452187,-465.912624,0.0004,120]
[398121335,1765385452197,-169.90399,0.0004,120]
[398121336,1765385452207,-151.0,0.0004,120]
[398121337,1765385452216,-1282.301139,0.0004,120]
[398121338,1765385452226,-465.912624,0.0004,120]
[398121339,1765385452236,-151.0,0.0004,90]
[398121340,1765385452247,-169.90399,0.0004,120]
[398121341,1765385452257,-151.0,0.0004,120]
[398121342,1765385452268,-465.912624,0.0004,120]
[398121343,1765385452278,-151.0,0.0004,90]
[398121344,1765385452289,-169.90399,0.0004,120]
[398121345,1765385452299,-1282.301139,0.0004,120]
[398121346,1765385452309,-465.912624,0.0004,120]
[398121347,1765385452322,-294.352536,0.0004,90]
[398121348,1765385452332,-1282.301139,0.0004,120]
[398121349,1765385452342,-155.397602,0.0004,120]
[398121350,1765385452351,-1282.301139,0.0004,120]
[398121351,1765385452361,-151.0,0.0004,120]
[398121352,1765385452370,-155.397602,0.0004,120]
[398121353,1765385452380,-151.0,0.0004,120]
[398121354,1765385452391,-162.469407,0.0004,120]
[398121355,1765385452400,-155.397602,0.0004,120]
[398121356,1765385452411,-151.0,0.0004,120]
[398121357,1765385452421,-471.246844,0.0004,120]
[398121358,1765385452431,-155.397602,0.0004,120]
[398121359,1765385452442,-3219.353444,0.0004,120]
[398121360,1765385452454,-471.246844,0.0004,120]
[398121361,1765385452464,-471.246844,0.0004,120]
[398121362,1765385452474,-471.246844,0.0004,120]
[398121363,1765385452484,-151.0,0.0004,120]
[398121364,1765385452494,-428.830349,0.0004,120]
[398121365,1765385452504,-428.830349,0.0004,120]
[398121366,1765385452514,-428.830349,0.0004,120]
[398121367,1765385452528,-1326.42,0.0004,30]
[398121368,1765385452538,-428.830349,0.0004,120]
[398121369,1765385452550,-151.0,0.0004,120]
[398121370,1765385452559,-1625.50491108,0.00040108,15]
[398121371,1765385452572,-187.6702066,0.00040117,7]
[398121372,1765385452582,-1326.42,0.00040274,30]
[398121373,1765385452592,-422.591798,0.00040368,15]
[398121374,1765385452602,-622.36086218,0.00040371,2]
[398121375,1765385452612,-600.0,0.00040438,30]
[398121376,1765385452624,-199.0,0.00040447,11]
[398121377,1765385452634,-2500.0,0.000405,120]
[398121378,1765385452645,-10000.0,0.00040516,30]
[398121379,1765385452656,-1075.03977405,0.00040548,30]
[398121380,1765385452894,-251.38022595,0.00040548,30]
[398121381,1765385452905,-325.04360946,0.00040573,12]
[398121382,1765385452915,-182.34104223,0.00040621,30]
[398121383,1765385452924,-2549.14611705,0.00040635,30]
[398121384,1765385453002,-1750.0,0.00038256,31]
[398121385,1765385453013,-6999.692225,0.00038256,31]
[398121386,1765385453032,-518.81217,0.00038256,31]
[398121387,1765385453043,-500.0,0.00038356,30]
[398121388,1765385453052,-500.0,0.00038356,30]
[398121389,1765385453062,-500.0,0.00038356,30]
[398121390,1765385453072,-500.0,0.00038356,30]
[398121391,1765385453082,-500.0,0.00038356,30]
[398121392,1765385453092,-500.0,0.00038356,30]
[398121393,1765385453101,-4486.01157028,0.00039999,120]
[398121394,1765385453113,-4263.68065472,0.00039999,120]
[398121395,1765385453123,-518.81217,0.00039999,120]
[398121396,1765385453133,-7450.85388295,0.00040635,30]
[398121397,1765385453143,-422.591798,0.00040738,15]
[398121398,1765385453153,-1625.50491108,0.00040794,15]
[398121399,1765385453162,-1326.42,0.00040822,30]
[398121400,1765385453171,-622.36086218,0.00040925,2]
[398121401,1765385453180,-199.0,0.00040995,12]
[398121402,1765385453190,-500.0,0.00040998,30]
[398121403,1765385453199,-500.0,0.00040998,30]
[398121404,1765385453209,-500.0,0.00040998,14]
[398121405,1765385453360,-545.68,0.00040998,30]
[398121406,1765385453370,-500.0,0.00040999,30]
[398121407,1765385453379,-500.0,0.00040999,30]
[398121408,1765385453388,-483.16120916,0.00040999,30]
[398121409,1765385453397,-285.20294484,0.00040999,14]
[398121410,1765385453408,-545.68,0.00040999,30]
[398121411,1765385453417,-545.68,0.00040999,30]
[398121412,1765385453426,-545.68,0.00040999,30]
[398121413,1765385453435,-545.68,0.00040999,30]
[398121414,1765385453444,-545.68,0.00040999,30]
[398121415,1765385453453,-545.72901897,0.00040999,30]
[398121416,1765385453462,-10000.0,0.00040999,30]
[398121417,1765385453471,-3606.2241481,0.00040999,41]
[398121418,1765385453485,-327.84001672,0.00040999,41]
[398121419,1765385453497,-441.87935112,0.00040999,41]
[398121420,1765385453509,-1268.79471161,0.00040999,41]
[398121421,1765385453521,-4355.26177245,0.00040999,41]
[398121422,1765385453531,-2500.0,0.00041,120]
[398121423,1765385453541,-367.152816,0.00041,21]
[398121424,1765385453551,-150.0,0.00041096,2]
[398121425,1765385453561,-2431.52,0.00041096,2]
[398121426,1765385453571,-552.37292159,0.00041096,2]
[398121427,1765385453583,-856.16707841,0.00041096,2]
[398121428,1765385453593,-51.7973974,0.00041096,4]
[398121429,1765385453605,-674.82664481,0.00041096,4]
[398121430,1765385453617,-273.37595779,0.00041096,4]
[398121431,1765385453626,-1326.42,0.00041096,30]
[398121432,1765385453636,-398.0,0.000411,2]
[398121433,1765385453645,-422.591798,0.00041109,15]
[398121434,1765385453656,-244.12362033,0.00041221,30]
[398121435,1765385453669,-500.0,0.00041221,30]
[398121436,1765385453679,-500.0,0.00041221,30]
[398121437,1765385453688,-573.37968592,0.00041221,30]
[398121438,1765385453698,-500.0,0.00041221,30]
[398121439,1765385453707,-500.0,0.00041221,30]
[398121440,1765385453717,-500.0,0.00041221,30]
[398121441,1765385453727,-500.0,0.00041221,30]
[398121442,1765385453737,-10414.1337231,0.00041222,2]
[398121443,1765385453750,-902.7055161,0.00041222,2]
[398121444,1765385453761,-1859.2772069,0.00041222,2]
[398121445,1765385453788,-2663.2606002,0.00031307,2]
[398121446,1765385453800,-2993.80498,0.00031307,2]
[398121447,1765385453812,-858.9344198,0.00031307,2]
[398121448,1765385453822,-1323.23525739,0.00038256,31]
[398121449,1765385453834,-340.82000003,0.00038256,31]
[398121450,1765385453846,-965.31574439,0.00038256,31]
[398121451,1765385454066,-2215.25,0.00017636,2]
[398121452,1765385454076,-2215.25,0.00018564,2]
[398121453,1765385454087,-2215.25,0.00019492,2]
[398121454,1765385454099,-2215.25,0.0002042,2]
[398121455,1765385454108,-2215.25,0.00021349,2]
[398121456,1765385454117,-2215.25,0.00022277,2]
[398121457,1765385454127,-6515.0,0.00034307,2]
[398121458,1765385454137,-3321.93709762,0.00038256,31]
[398121459,1765385454151,-2798.38412557,0.00038256,31]
[398121460,1765385454161,-518.81217,0.00038256,31]
[398121461,1765385454170,-8749.692225,0.00038256,31]
[398121462,1765385454179,-518.81217,0.00038256,31]
[398121463,1765385454189,-500.0,0.00038356,30]
[398121464,1765385454199,-500.0,0.00038356,30]
[398121465,1765385454209,-500.0,0.00038356,30]
[398121466,1765385454218,-500.0,0.00038356,30]
[398121467,1765385454228,-500.0,0.00038356,30]
[398121468,1765385454237,-8749.692225,0.00039999,120]
[398121469,1765385454247,-500.0,0.00039999,30]
[398121470,1765385454256,-518.81217,0.00039999,120]
[398121471,1765385454267,-8749.692225,0.00039999,120]
[398121472,1765385454276,-518.81217,0.00039999,120]
[398121473,1765385454287,-16018.6432065,0.00041222,2]
[398121474,1765385454296,-14919.6247014,0.00041222,2]
[398121475,1765385454305,-97847.8817419,0.00041222,2]
[398121476,1765385454314,-1000.0,0.00041233,4]
[398121477,1765385454324,-281.53647739,0.00041261,120]
[398121478,1765385454334,-150.0,0.000413,23]
[398121479,1765385454344,-10000.0,0.0004131,120]
[398121480,1765385454353,-7301.67294892,0.00041344,2]
[398121481,1765385454363,-169.32672481,0.00041344,2]
[398121482,1765385454373,-1056.51,0.0004135,30]
[398121483,1765385454383,-678.26,0.0004135,30]
[398121484,1765385454392,-500.0,0.0004135,30]
[398121485,1765385454403,-500.0,0.0004135,30]
[398121486,1765385454414,-500.0,0.0004135,30]
[398121487,1765385454423,-500.0,0.0004135,30]
[398121488,1765385454433,-500.0,0.0004135,30]
[398121489,1765385454442,-418.98,0.0004135,30]
[398121490,1765385454452,-500.0,0.0004135,30]
[398121491,1765385454462,-246.36,0.0004135,30]
[398121492,1765385454471,-432.34115528,0.0004135,30]
[398121493,1765385454481,-500.0,0.0004135,30]
[398121494,1765385454490,-151.0,0.00041351,120]
[398121495,1765385454499,-247.42443285,0.00041358,2]
[398121496,1765385454508,-235.80169103,0.00041358,2]
[398121497,1765385454519,-500.0,0.0004136,30]
[398121498,1765385454528,-500.0,0.0004136,30]
[398121499,1765385454537,-500.0,0.0004136,30]
[398121500,1765385454547,-500.0,0.0004136,30]
[398121501,1765385454556,-500.0,0.0004136,30]
[398121502,1765385454569,-500.0,0.0004136,30]
[398121503,1765385454585,-500.0,0.0004136,30]
[398121504,1765385454599,-228.08,0.0004136,30]
[398121505,1765385454610,-500.0,0.0004136,30]
[398121506,1765385454625,-500.0,0.0004136,30]
[398121507,1765385454638,-232.78,0.0004136,30]
[398121508,1765385454652,-200.04872817,0.00041361,30]
[398121509,1765385454667,-151.572302,0.00041361,120]
[398121510,1765385454683,-152.274201,0.00041361,120]
[398121511,1765385454695,-151.0,0.00041361,120]
[398121512,1765385454708,-151.0,0.00041361,120]
[398121513,1765385454720,-151.0,0.00041361,10]
[398121514,1765385454731,-151.0,0.00041361,120]
[398121515,1765385454745,-151.0,0.00041361,120]
[398121516,1765385454758,-151.0,0.00041361,120]
[398121517,1765385454771,-151.0,0.00041361,120]
[398121518,1765385454783,-151.0,0.00041361,120]
[398121519,1765385454797,-151.0,0.00041361,120]
[398121520,1765385454809,-157.83421,0.00041361,120]
[398121521,1765385454822,-151.0,0.00041361,120]
[398121522,1765385454835,-171.115855,0.00041361,120]
[398121523,1765385454847,-151.0,0.00041361,120]
[398121524,1765385454860,-151.0,0.00041361,120]
[398121525,1765385454872,-151.0,0.00041361,120]
[398121526,1765385454883,-151.0,0.00041361,120]
[398121527,1765385454896,-151.0,0.00041361,120]
[398121528,1765385454915,-151.0,0.00041361,120]
[398121529,1765385454931,-151.0,0.00041361,90]
[398121530,1765385454945,-151.0,0.00041361,120]
[398121531,1765385454960,-151.0,0.00041361,120]
[398121532,1765385454971,-642.94,0.00041361,30]
[398121533,1765385454983,-264.79718,0.00041361,120]
[398121534,1765385454995,-151.0,0.00041361,120]
[398121535,1765385455007,-151.0,0.00041361,120]
[398121536,1765385455022,-151.0,0.00041361,120]
[398121537,1765385455033,-190.692769,0.00041361,120]
[398121538,1765385455043,-151.0,0.00041361,120]
[398121539,1765385455053,-161.326084,0.00041361,120]
[398121540,1765385455065,-151.0,0.00041361,120]
[398121541,1765385455077,-151.0,0.00041361,120]
[398121542,1765385455090,-151.0,0.00041361,120]
[398121543,1765385455101,-151.0,0.00041361,120]
[398121544,1765385455111,-151.0,0.00041361,120]
[398121545,1765385455122,-160.499407,0.00041361,120]
[398121546,1765385455134,-151.0,0.00041361,120]
[398121547,1765385455154,-151.0,0.00041361,120]
[398121548,1765385455167,-151.0,0.00041361,120]
[398121549,1765385455178,-294.259708,0.00041361,120]
[398121550,1765385455190,-326.72944,0.00041361,120]
[398121551,1765385455201,-326.72944,0.00041361,120]
[398121552,1765385455212,-326.72944,0.00041361,120]
[398121553,1765385455223,-326.72944,0.00041361,120]
[398121554,1765385455234,-326.72944,0.00041361,120]
[398121555,1765385455246,-326.72944,0.00041361,120]
[398121556,1765385455256,-326.72944,0.00041361,120]
[398121557,1765385455268,-326.72944,0.00041361,120]
[398121558,1765385455279,-154.779892,0.00041361,120]
[398121559,1765385455290,-151.0,0.00041361,120]
[398121560,1765385455300,-151.0,0.00041361,120]
[398121561,1765385455311,-151.0,0.00041361,120]
[398121562,1765385455322,-151.0,0.00041361,120]
[398121563,1765385455334,-151.0,0.00041361,120]
[398121564,1765385455345,-151.0,0.00041361,120]
[398121565,1765385455357,-206.543387,0.00041361,120]
[398121566,1765385455368,-151.0,0.00041361,120]
[398121567,1765385455379,-206.543387,0.00041361,120]
[398121568,1765385455391,-151.0,0.00041361,120]
[398121569,1765385455404,-206.543387,0.00041361,120]
[398121570,1765385455415,-151.0,0.00041361,120]
[398121571,1765385455427,-206.543387,0.00041361,120]
[398121572,1765385455438,-151.0,0.00041361,120]
[398121573,1765385455450,-151.0,0.00041361,120]
[398121574,1765385455461,-206.543387,0.00041361,120]
[398121575,1765385455471,-183.404618,0.00041361,120]
[398121576,1765385455480,-206.543387,0.00041361,120]
[398121577,1765385455491,-206.543387,0.00041361,120]
[398121578,1765385455500,-206.543387,0.00041361,120]
[398121579,1765385455509,-270.377022,0.00041361,120]
[398121580,1765385455518,-270.377022,0.00041361,120]
[398121581,1765385455528,-270.377022,0.00041361,120]
[398121582,1765385455537,-270.377022,0.00041361,120]
[398121583,1765385455546,-270.377022,0.00041361,120]
[398121584,1765385455555,-325.63756,0.00041361,120]
[398121585,1765385455564,-270.377022,0.00041361,120]
[398121586,1765385455573,-325.63756,0.00041361,120]
[398121587,1765385455582,-270.377022,0.00041361,120]
[398121588,1765385455591,-325.63756,0.00041361,120]
[398121589,1765385455601,-270.377022,0.00041361,120]
[398121590,1765385455610,-325.63756,0.00041361,120]
[398121591,1765385455619,-325.63756,0.00041361,120]
[398121592,1765385455629,-325.63756,0.00041361,120]
[398121593,1765385455638,-151.0,0.00041361,7]
[398121594,1765385455648,-151.0,0.00041361,7]
[398121595,1765385455659,-325.63756,0.00041361,120]
[398121596,1765385455674,-325.63756,0.00041361,120]
[398121597,1765385455684,-304.036068,0.00041361,120]
[398121598,1765385455693,-304.036068,0.00041361,120]
[398121599,1765385455703,-304.036068,0.00041361,120]
[398121600,1765385455715,-304.036068,0.00041361,120]
[398121601,1765385455725,-304.036068,0.00041361,120]
[398121602,1765385455735,-304.036068,0.00041361,120]
[398121603,1765385455744,-379.802313,0.00041361,120]
[398121604,1765385455755,-304.036068,0.00041361,120]
[398121605,1765385455764,-379.802313,0.00041361,120]
[398121606,1765385455773,-304.036068,0.00041361,120]
[398121607,1765385455783,-379.802313,0.00041361,120]
[398121608,1765385455792,-379.802313,0.00041361,120]
[398121609,1765385455801,-379.802313,0.00041361,120]
[398121610,1765385455810,-379.802313,0.00041361,120]
[398121611,1765385455819,-343.025804,0.00041361,120]
[398121612,1765385455828,-379.802313,0.00041361,120]
[398121613,1765385455837,-343.025804,0.00041361,120]
[398121614,1765385455846,-379.802313,0.00041361,120]
[398121615,1765385455855,-343.025804,0.00041361,120]
[398121616,1765385455865,-343.025804,0.00041361,120]
[398121617,1765385455875,-343.025804,0.00041361,120]
[398121618,1765385455884,-343.025804,0.00041361,120]
[398121619,1765385455893,-151.0,0.00041361,120]
[398121620,1765385455904,-151.874828,0.00041361,120]
[398121621,1765385455913,-343.025804,0.00041361,120]
[398121622,1765385455923,-343.025804,0.00041361,120]
[398121623,1765385456152,-151.0,0.00041361,15]
[398121624,1765385456162,-151.0,0.00041361,15]
[398121625,1765385456171,-3999.053549,0.00041361,120]
[398121626,1765385456181,-151.0,0.00041361,15]
[398121627,1765385456190,-3999.053549,0.00041361,120]
[398121628,1765385456199,-151.0,0.00041361,15]
[398121629,1765385456208,-3999.053549,0.00041361,120]
[398121630,1765385456217,-288.401403,0.00041361,15]
[398121631,1765385456226,-3999.053549,0.00041361,120]
[398121632,1765385456234,-3999.053549,0.00041361,120]
[398121633,1765385456243,-3999.053549,0.00041361,120]
[398121634,1765385456252,-3999.053549,0.00041361,120]
[398121635,1765385456261,-1550.84687886,0.00041361,120]
[398121636,1765385456276,-356.94828119,0.00041361,120]
[398121637,1765385456287,-2091.25838895,0.00041361,120]
[398121638,1765385456296,-697.270677,0.00041361,120]
[398121639,1765385456306,-697.270677,0.00041361,120]
[398121640,1765385456314,-697.270677,0.00041361,120]
[398121641,1765385456323,-697.270677,0.00041361,120]
[398121642,1765385456333,-697.270677,0.00041361,120]
[398121643,1765385456343,-1514.57487,0.00041361,120]
[398121644,1765385456352,-697.270677,0.00041361,120]
[398121645,1765385456361,-1514.57487,0.00041361,120]
[398121646,1765385456370,-697.270677,0.00041361,120]
[398121647,1765385456380,-1514.57487,0.00041361,120]
[398121648,1765385456389,-697.270677,0.00041361,120]
[398121649,1765385456399,-1514.57487,0.00041361,120]
[398121650,1765385456408,-1514.57487,0.00041361,120]
[398121651,1765385456418,-1514.57487,0.00041361,120]
[398121652,1765385456427,-1514.57487,0.00041361,120]
[398121653,1765385456436,-1514.57487,0.00041361,120]
[398121654,1765385456446,-151.0,0.00041361,120]
[398121655,1765385456455,-1028.843754,0.00041361,120]
[398121656,1765385456464,-151.0,0.00041361,120]
[398121657,1765385456473,-1028.843754,0.00041361,120]
[398121658,1765385456483,-151.0,0.00041361,120]
[398121659,1765385456492,-1028.843754,0.00041361,120]
[398121660,1765385456502,-151.0,0.00041361,120]
[398121661,1765385456511,-1028.843754,0.00041361,120]
[398121662,1765385456521,-1028.843754,0.00041361,120]
[398121663,1765385456529,-1028.843754,0.00041361,120]
[398121664,1765385456538,-1028.843754,0.00041361,120]
[398121665,1765385456547,-1028.843754,0.00041361,120]
[398121666,1765385456556,-151.0,0.00041361,120]
[398121667,1765385456565,-151.0,0.00041361,120]
[398121668,1765385456574,-151.0,0.00041361,120]
[398121669,1765385456585,-151.0,0.00041361,120]
[398121670,1765385456594,-10000.0,0.00041361,30]
[398121671,1765385456603,-151.0,0.00041361,120]
[398121672,1765385456613,-239.873844,0.00041361,120]
[398121673,1765385456623,-656.837636,0.00041361,120]
[398121674,1765385456632,-151.0,0.00041361,120]
[398121675,1765385456643,-656.837636,0.00041361,120]
[398121676,1765385456654,-151.0,0.00041361,120]
[398121677,1765385456666,-656.837636,0.00041361,120]
[398121678,1765385456677,-656.837636,0.00041361,120]
[398121679,1765385456687,-656.837636,0.00041361,120]
[398121680,1765385456696,-656.837636,0.00041361,120]
[398121681,1765385456706,-350.642454,0.00041361,120]
[398121682,1765385456715,-350.642454,0.00041361,120]
[398121683,1765385456725,-656.837636,0.00041361,120]
[398121684,1765385456734,-656.837636,0.00041361,120]
[398121685,1765385456743,-350.642454,0.00041361,120]
[398121686,1765385456754,-350.642454,0.00041361,120]
[398121687,1765385456763,-350.642454,0.00041361,120]
[398121688,1765385456772,-350.642454,0.00041361,120]
[398121689,1765385456781,-350.642454,0.00041361,120]
[398121690,1765385456791,-350.642454,0.00041361,120]
[398121691,1765385456800,-368.243567,0.00041361,120]
[398121692,1765385456809,-368.243567,0.00041361,120]
[398121693,1765385456818,-435.62562,0.00041361,120]
[398121694,1765385456827,-435.62562,0.00041361,120]
[398121695,1765385456836,-368.243567,0.00041361,120]
[398121696,1765385456845,-368.243567,0.00041361,120]
[398121697,1765385456854,-435.62562,0.00041361,120]
[398121698,1765385456863,-435.62562,0.00041361,120]
[398121699,1765385456873,-368.243567,0.00041361,120]
[398121700,1765385456882,-368.243567,0.00041361,120]
[398121701,1765385456891,-435.62562,0.00041361,120]
[398121702,1765385456900,-248.896682,0.00041361,120]
[398121703,1765385456913,-435.62562,0.00041361,120]
[398121704,1765385456922,-368.243567,0.00041361,120]
[398121705,1765385456932,-248.896682,0.00041361,120]
[398121706,1765385456941,-368.243567,0.00041361,120]
[398121707,1765385456951,-435.62562,0.00041361,120]
[398121708,1765385456960,-248.896682,0.00041361,120]
[398121709,1765385456970,-435.62562,0.00041361,120]
[398121710,1765385456979,-248.896682,0.00041361,120]
[398121711,1765385456999,-360.497485,0.00041361,120]
[398121712,1765385457009,-248.896682,0.00041361,120]
[398121713,1765385457019,-360.497485,0.00041361,120]
[398121714,1765385457028,-248.896682,0.00041361,120]
[398121715,1765385457037,-360.497485,0.00041361,120]
[398121716,1765385457046,-248.896682,0.00041361,120]
[398121717,1765385457056,-360.497485,0.00041361,120]
[398121718,1765385457065,-248.896682,0.00041361,120]
[398121719,1765385457074,-360.497485,0.00041361,120]
[398121720,1765385457084,-360.497485,0.00041361,120]
[398121721,1765385457095,-360.497485,0.00041361,120]
[398121722,1765385457105,-360.497485,0.00041361,120]
[398121723,1765385457115,-853.520649,0.00041361,120]
[398121724,1765385457124,-853.520649,0.00041361,120]
[398121725,1765385457133,-151.0,0.00041361,120]
[398121726,1765385457144,-151.0,0.00041361,120]
[398121727,1765385457156,-853.520649,0.00041361,120]
[398121728,1765385457165,-853.520649,0.00041361,120]
[398121729,1765385457175,-151.0,0.00041361,120]
[398121730,1765385457184,-172.550491,0.00041361,120]
[398121731,1765385457193,-853.520649,0.00041361,120]
[398121732,1765385457203,-853.520649,0.00041361,120]
[398121733,1765385457212,-853.520649,0.00041361,120]
[398121734,1765385457221,-853.520649,0.00041361,120]
[398121735,1765385457231,-151.0,0.00041361,120]
[398121736,1765385457240,-151.0,0.00041361,120]
[398121737,1765385457249,-151.0,0.00041361,120]
[398121738,1765385457259,-1105.311857,0.00041361,120]
[398121739,1765385457270,-1105.311857,0.00041361,120]
[398121740,1765385457279,-1105.311857,0.00041361,120]
[398121741,1765385457289,-151.0,0.00041361,120]
[398121742,1765385457299,-151.0,0.00041361,120]
[398121743,1765385457309,-1105.311857,0.00041361,120]
[398121744,1765385457319,-152.944698,0.00041361,60]
[398121745,1765385457329,-151.0,0.00041361,120]
[398121746,1765385457339,-151.0,0.00041361,120]
[398121747,1765385457349,-1119.41108,0.00041361,120]
[398121748,1765385457358,-1119.41108,0.00041361,120]
[398121749,1765385457367,-151.0,0.00041361,120]
[398121750,1765385457376,-151.0,0.00041361,120]
[398121751,1765385457385,-151.0,0.00041361,120]
[398121752,1765385457394,-1119.41108,0.00041361,120]
[398121753,1765385457404,-151.0,0.00041361,120]
[398121754,1765385457415,-151.0,0.00041361,120]
[398121755,1765385457424,-1119.41108,0.00041361,120]
[398121756,1765385457433,-151.0,0.00041361,120]
[398121757,1765385457443,-151.0,0.00041361,120]
[398121758,1765385457452,-151.0,0.00041361,120]
[398121759,1765385457461,-151.0,0.00041361,120]
[398121760,1765385457470,-151.0,0.00041361,120]
[398121761,1765385457479,-151.0,0.00041361,120]
[398121762,1765385457489,-169.90399,0.00041361,120]